[Event "Budapest Chess Festival 2024"]
[Site "Budapest"]
[Date "2024.05.23"]
[Round "1.7"]
[White "Geher, Koppany"]
[Black "Dragnev, Valentin"]
[Result "0-1"]
[ECO "B10"]
[WhiteElo "2277"]
[BlackElo "2566"]
[Annotator "TA"]
[PlyCount "80"]
[EventDate "2024.05.20"]
[EventType "swiss"]
[EventCountry "HUN"]
[SourceTitle "playchess.com"]
[Source "ChessBase"]
[SourceQuality "1"]
[TimeControl "40/5400+30:1800+30"]

{[%evp 9,80,14,22,5,15,-23,-27,-18,-18,-42,-41,-46,-41,-36,-41,-40,0,0,0,-6,-12,-21,0,0,52,0,29,18,36,0,51,41,46,47,58,5,27,20,17,26,21,23,14,21,28,25,24,32,54,24,50,35,32,-30,-30,-45,-42,-225,0,-7,-9,-10,31,-187,-203,-239,-229,-227,-185,-447,-462,-533,-499]} 1. e4 {[%emt 0:00:34]} c6 {[%emt 0:00:34]} 2. Nf3 {[%emt 0:00:33]} d5 {[%emt 0:00:05]} 3. d3 {[%emt 0:00:10]} g6 {[%emt 0:00:24]} 4. e5 {[%emt 0:02:00]} c5 {[%emt 0:00:25]} 5. c3 {[%emt 0:03:48]} Nc6 {[%emt 0:00:50]} 6. Be2 {[%emt 0:04:20]} Bg4 {[%emt 0:04:48]} 7. Bf4 {[%emt 0:05:43]} Bxf3 {[%emt 0:03:25]} 8. Bxf3 {[%emt 0:00:09] Black has an edge.} e6 {[%emt 0:00:07]} 9. c4 {[%emt 0:18:06]} Nge7 {[%emt 0:06:10]} 10. Nc3 {[%emt 0:05:00]} Bg7 {[%emt 0:00:11]} 11. cxd5 {[%emt 0:24:14]} exd5 {[%emt 0:02:03][%cal Oe8g8]} (11... Nxe5 $6 12. Bxe5 Bxe5 13. dxe6 $16) 12. O-O {[%emt 0:04:07]} O-O {[%emt 0:01:17]} 13. Re1 {[%emt 0:02:22]} h6 {[%emt 0:09:00]} 14. Bg3 {[%emt 0:05:08]} Nd4 {[%emt 0:05:03]} 15. Bg4 {[%emt 0:03:27]} Qb6 {[%emt 0:05:41]} 16. Rc1 {[%emt 0:03:07]} Qa6 {[%emt 0:08:45]} (16... Qxb2 $11 17. Na4 Qxa2) 17. a3 {[%emt 0:04:59]} (17. f4 $14) 17... Rad8 {[%emt 0:01:11]} 18. Ne2 {[%emt 0:02:25] Hoping for Nxd4.} Ndc6 {[%emt 0:03:46]} 19. d4 {[%emt 0:01:28]} cxd4 {[%emt 0:06:24]} (19... h5 $11 20. Bf3 cxd4) 20. Nxd4 $14 {[%emt 0:00:02]} Nxd4 {[%emt 0:00:09]} 21. Qxd4 {[%emt 0:00:08]} Nc6 {[%emt 0:00:03]} 22. Qc5 {[%emt 0:00:46]} ({White should try} 22. Qd2 $14) 22... Rfe8 {[%emt 0:02:35]} 23. e6 {[%emt 0:01:25] [#] Threatens to win with exf7+.} f5 {[%emt 0:04:41]} 24. Be2 {[%emt 0:00:27]} Qb6 {[%emt 0:01:29]} 25. Qxb6 {[%emt 0:02:46]} axb6 {[%emt 0:00:02]} 26. Bc7 {[%emt 0:05:26][%csl LRb6,LRd8][%cal Bg3c7,Bc7b6,Bb6c5][%mdl 32]} Rc8 {[%emt 0:00:55]} 27. Bxb6 {[%emt 0:00:01]} Bxb2 {[%emt 0:00:05]} 28. Rb1 {[%emt 0:00:36]} Bc3 {[%emt 0:11:00]} 29. Rec1 {[%emt 0:00:01]} d4 {[%emt 0:00:17][%cal Og8g7]} 30. Bf3 {[%emt 0:00:13]} Kg7 {[%emt 0:01:17]} 31. Bc5 {[%emt 0:00:57]} ({Better is} 31. Bd5 $14) 31... Ne5 $11 {[%emt 0:03:37]} 32. Rxb7+ {[%emt 0:00:39]} Kf6 {[%emt 0:00:10]} 33. Bb6 $2 {[%emt 0:01:10]} (33. Ba7 $1 $15) 33... d3 $2 {[%emt 0:02:47]} ({Less strong is} 33... Kxe6 34. Be2 $17) (33... Nxf3+ $19 34. gxf3 Rb8 (34... Rxe6 $2 {loses.} 35. Bxd4+ Bxd4 36. Rxc8 $18) (34... Kxe6 35. Rh7 $15) 35. Rxb8 Rxb8) 34. Bd5 {[%emt 0:00:01] A strong pair of Bishops.} d2 $36 {[%emt 0:06:50][%mdl 2048] Black is more active.} 35. Rd1 {[%emt 0:00:00] aiming for f4.} Nd3 {[%emt 0:00:22] [#]} 36. f4 $2 {[%emt 0:00:01]} Nxf4 $19 {[%emt 0:03:32]} 37. Bb3 {[%emt 0:00:41]} Nxe6 {[%emt 0:02:38] ...Nd4 is the strong threat.} 38. Be3 {[%emt 0:00:04]} Ng5 {[%emt 0:03:17]} 39. Rxd2 $2 {[%emt 0:02:18]} (39. Bxd2 $2 {perishes.} Bxd2 40. Rb6+ Kg7 41. Rb7+ Kh8 42. Rxd2 Rc1+ 43. Rd1 Rxd1+ 44. Bxd1 Re1+ 45. Kf2 Rxd1 $19) (39. Kf2) 39... Rxe3 {[%emt 0:01:14]} 40. Rd6+ {[%emt 0:00:00]} Ne6 {[%emt 0:00:00] Weighted Error Value: White=0.39/Black=0.24 (precise) .  Loses game:     	White=2     	---        Missed win:     	---       	Black=1      Mistake:       	White=4     	Black=2      Inaccurate:     	White=3     	Black=4      OK:         	White=10    	Black=14     Best:        	White=1     	Black=3} 0-1

[Event "Budapest Chess Festival 2024"]
[Site "Budapest"]
[Date "2024.05.23"]
[Round "1.8"]
[White "Teclaf, Pawel"]
[Black "Rudolf, Michal"]
[Result "1/2-1/2"]
[ECO "A06"]
[WhiteElo "2568"]
[BlackElo "2275"]
[Annotator "TA"]
[PlyCount "63"]
[EventDate "2024.05.20"]
[EventType "swiss"]
[EventCountry "HUN"]
[SourceTitle "playchess.com"]
[Source "ChessBase"]
[SourceQuality "1"]
[TimeControl "40/5400+30:1800+30"]

{[%evp 19,63,0,0,0,0,0,0,0,0,19,20,10,11,6,18,0,-9,-10,-7,-9,0,-8,0,-24,-22,-28,-18,-41,-25,-35,-18,-35,-19,-34,-28,-26,-14,-26,-27,-33,0,-14,-4,-25,0,-6]} 1. Nf3 {[%emt 0:00:33]} d5 {[%emt 0:00:45]} 2. e3 {[%emt 0:00:09]} Nf6 {[%emt 0:00:20]} 3. c4 {[%emt 0:00:05]} c6 {[%emt 0:00:21]} 4. Nc3 {[%emt 0:00:06]} e6 {[%emt 0:00:21]} 5. b3 {[%emt 0:00:14]} Nbd7 {[%emt 0:00:11]} 6. Qc2 {[%emt 0:00:32]} Bd6 {[%emt 0:00:37]} 7. Be2 {[%emt 0:03:04]} O-O {[%emt 0:00:16]} 8. O-O {[%emt 0:00:31]} Re8 {[%emt 0:03:10]} 9. Bb2 {[%emt 0:01:22]} e5 {[%emt 0:00:53]} 10. cxd5 {[%emt 0:03:25]} Nxd5 {[%emt 0:00:36]} 11. Ne4 {[%emt 0:02:09]} Bc7 {[%emt 0:01:00]} 12. Ng3 {[%emt 0:02:23]} N7f6 {[%emt 0:05:38]} 13. d3 {[%emt 0:00:28]} a5 {[%emt 0:03:25]} 14. a3 {[%emt 0:05:06]} Qe7 {[%emt 0:01:40]} 15. Rfe1 {[%emt 0:05:55]} h6 {[%emt 0:06:09]} 16. Rad1 {[%emt 0:07:40]} Nh7 {[%emt 0:04:07]} (16... Bd7 {is interesting.} 17. d4 exd4 18. Rxd4 Nxe3 19. fxe3 Qxe3+ 20. Kh1 Bxg3 21. hxg3 Qf2) 17. Ne4 {[%emt 0:06:56]} Ng5 {[%emt 0:06:25]} 18. Nfd2 {[%emt 0:06:02]} Nxe4 {[%emt 0:01:26]} 19. Nxe4 {[%emt 0:00:17]} Nf6 {[%emt 0:03:49]} 20. Nd2 {[%emt 0:10:59]} Be6 {[%emt 0:06:35]} 21. Nf3 {[%emt 0:07:09]} Bf5 {[%emt 0:02:22]} 22. h3 {[%emt 0:06:39]} Rad8 {[%emt 0:02:48]} 23. Qc3 {[%emt 0:04:50]} Nd5 {[%emt 0:01:38]} 24. Qc4 {[%emt 0:03:48]} Nb6 {[%emt 0:02:35]} 25. Qc1 {[%emt 0:02:17]} Be6 {[%emt 0:04:20]} 26. Qc2 {[%emt 0:00:30]} f6 {[%emt 0:02:30]} 27. Nd2 {[%emt 0:07:00]} Qf7 {[%emt 0:08:00]} 28. Rc1 {[%emt 0:01:12]} Qg6 {[%emt 0:03:13]} 29. Kh1 {[%emt 0:00:14]} Bd5 {[%emt 0:01:17]} 30. Bf1 {[%emt 0:01:48]} Nd7 {[%emt 0:05:26]} 31. Bc3 {[%emt 0:04:34]} Nc5 {[%emt 0:03:07][%cal Oc5d3] [#] White must now prevent ...Nxd3!} 32. e4 {[%emt 0:04:22] Weighted Error Value: White=0.07 (flawless) /Black=0.08 (flawless) .  Inaccurate:     	White=1     	Black=1      OK:         	White=7     	Black=7      Best:        	White=1     	---} 1/2-1/2

[Event "Budapest Chess Festival 2024"]
[Site "Budapest"]
[Date "2024.05.23"]
[Round "1.9"]
[White "Demeter, Dorina"]
[Black "Kadric, Denis"]
[Result "0-1"]
[ECO "A04"]
[WhiteElo "2274"]
[BlackElo "2558"]
[Annotator "RC"]
[PlyCount "68"]
[EventDate "2024.05.20"]
[EventType "swiss"]
[EventCountry "HUN"]
[SourceTitle "playchess.com"]
[Source "ChessBase"]
[SourceQuality "1"]
[TimeControl "40/5400+30:1800+30"]

1. Nf3 {[%emt 0:00:48]} d6 {[%emt 0:00:44]} 2. d4 {[%emt 0:01:38]} g6 {[%emt 0:00:11]} 3. e4 {[%emt 0:06:52]} Bg7 {[%emt 0:00:15]} 4. Bd3 {[%emt 0:00:43]} Nc6 {[%emt 0:00:11]} 5. c3 {[%emt 0:02:15]} e5 {[%emt 0:00:09]} 6. Bg5 {[%emt 0:02:12]} Nf6 {[%emt 0:02:25]} 7. h3 {[%emt 0:03:36]} O-O {[%emt 0:01:47]} 8. O-O {[%emt 0:00:15]} h6 {[%emt 0:02:15]} 9. Be3 {[%emt 0:00:51]} Nh5 {[%emt 0:07:57]} 10. Qd2 {[%emt 0:09:42]} Kh7 {[%emt 0:00:39]} 11. Na3 {[%emt 0:05:27]} a6 {[%emt 0:01:43]} 12. Rad1 {[%emt 0:14:21]} Qf6 {[%emt 0:06:09]} 13. Nc2 {[%emt 0:08:25]} g5 {[%emt 0:06:34]} 14. dxe5 {[%emt 0:06:52]} dxe5 {[%emt 0:00:07]} 15. Nh2 {[%emt 0:04:18]} Kh8 {[%emt 0:06:46]} 16. Nb4 {[%emt 0:08:16]} Nxb4 {[%emt 0:04:49]} 17. cxb4 {[%emt 0:00:11]} Nf4 {[%emt 0:00:02]} 18. Bc4 {[%emt 0:02:03]} Qg6 {[%emt 0:09:49]} 19. Qc2 {[%emt 0:05:08]} f5 {[%emt 0:09:56]} 20. Bc5 {[%emt 0:01:46]} Re8 {[%emt 0:01:22]} 21. Qb3 {[%emt 0:01:10]} Be6 {[%emt 0:03:27]} 22. Bxe6 {[%emt 0:10:09]} Rxe6 {[%emt 0:00:03]} 23. exf5 {[%emt 0:00:23]} Qxf5 {[%emt 0:00:03]} 24. Kh1 {[%emt 0:03:15]} Rae8 {[%emt 0:02:00]} 25. Rd2 {[%emt 0:01:10]} h5 {[%emt 0:14:02]} 26. Be3 {[%emt 0:00:02]} g4 {[%emt 0:00:49]} 27. Bxf4 {[%emt 0:00:46]} exf4 {[%emt 0:00:20]} 28. Rd5 {[%emt 0:00:19]} Re5 {[%emt 0:03:49]} 29. Rxe5 {[%emt 0:00:26]} Rxe5 {[%emt 0:00:01]} 30. Rd1 {[%emt 0:00:29]} Re2 {[%emt 0:02:40]} 31. hxg4 {[%emt 0:01:30]} hxg4 {[%emt 0:00:01]} 32. Rd8+ {[%emt 0:00:39]} Kh7 {[%emt 0:00:12]} 33. Nxg4 {[%emt 0:00:31]} Qxg4 {[%emt 0:01:49]} 34. Qd3+ {[%emt 0:00:29]} Kh6 {[%emt 0:00:04]} 0-1

[Event "Budapest Chess Festival 2024"]
[Site "Budapest"]
[Date "2024.05.23"]
[Round "1.10"]
[White "Nasuta, Grzegorz"]
[Black "Yilmaz, Baver"]
[Result "1-0"]
[ECO "B90"]
[WhiteElo "2547"]
[BlackElo "2269"]
[Annotator "TA"]
[PlyCount "71"]
[EventDate "2024.05.20"]
[EventType "swiss"]
[EventCountry "HUN"]
[SourceTitle "playchess.com"]
[Source "ChessBase"]
[SourceQuality "1"]
[TimeControl "40/5400+30:1800+30"]

{[%evp 19,71,10,28,40,40,36,39,28,50,49,43,52,58,54,56,56,50,52,41,44,67,23,124,109,108,69,80,37,103,110,253,255,253,219,227,203,275,271,707,688,686,691,696,685,29980,629,29992,29993,29993,29984,29996,29997,29997,29998]} 1. e4 {[%emt 0:00:32]} c5 {[%emt 0:01:07]} 2. Nf3 {[%emt 0:00:20]} d6 {[%emt 0:00:51]} 3. d4 {[%emt 0:01:22]} cxd4 {[%emt 0:00:25]} 4. Nxd4 {[%emt 0:00:07]} Nf6 {[%emt 0:00:33]} 5. Nc3 {[%emt 0:00:07]} a6 {[%emt 0:00:11]} 6. f3 {[%emt 0:00:18]} e5 {[%emt 0:04:42]} 7. Nb3 {[%emt 0:00:24]} Be6 {[%emt 0:02:05]} 8. Be3 {[%emt 0:00:40]} Be7 {[%emt 0:03:26]} 9. Qd2 {[%emt 0:00:54]} Nbd7 {[%emt 0:02:07]} 10. g4 {[%emt 0:00:24][%cal Bg2g4,Bg4g5][%mdl 32]} Rc8 {[%emt 0:03:38]} 11. g5 {[%emt 0:04:08]} Nh5 {[%emt 0:00:58][%cal Oh7h6]} 12. O-O-O {[%emt 0:00:09]} O-O {[%emt 0:04:28]} 13. Kb1 {[%emt 0:04:11] White is slightly better.} b5 {[%emt 0:03:25]} 14. Nd5 {[%emt 0:13:04]} Bxd5 {[%emt 0:03:01]} 15. exd5 {[%emt 0:00:06]} Nb6 {[%emt 0:08:12]} 16. Na5 $36 {[%emt 0:00:12][%mdl 2048] Nc6 is the strong threat. White is more active.} Qc7 {[%emt 0:03:21]} (16... Nxd5 $6 17. Nb7 $16) 17. Bh3 {[%emt 0:11:42]} Rce8 {[%emt 0:02:15]} 18. Bg4 {[%emt 0:12:31]} Nf4 {[%emt 0:01:28]} 19. Bxf4 {[%emt 0:00:14]} exf4 {[%emt 0:00:06]} 20. Qxf4 {[%emt 0:11:14]} Nxd5 {[%emt 0:03:08]} 21. Rxd5 $16 {[%emt 0:01:23]} Qxa5 {[%emt 0:00:11] Black is weak on the light squares} 22. Rhd1 {[%emt 0:10:15] White is more active.} Bd8 {[%emt 0:09:45]} 23. Bf5 {[%emt 0:05:00][%cal Bg4f5,Bf5e4,Be4d3][%mdl 32]} (23. Rxd6 Bc7 24. Qd2 Qxd2 25. R6xd2 Bf4 $11) 23... g6 {[%emt 0:10:26] [#]} (23... Re5 $1 $14) 24. Be4 $1 {[%emt 0:00:07]} Be7 {[%emt 0:05:41] This move loses the game for Black.} (24... Re5 $16) 25. h4 $18 {[%emt 0:00:47][%cal Bh2h4,Bh4h5,Bh5g6][%mdl 32]} f5 {[%emt 0:11:45]} 26. Bd3 {[%emt 0:03:16] aiming for Bc4.} Rf7 {[%emt 0:02:07]} 27. c3 {[%emt 0:02:48]} Bf8 {[%emt 0:02:48]} 28. Bc2 {[%emt 0:01:24]} Rc7 $2 {[%emt 0:03:02] [#]} (28... Qb6 29. h5 a5) 29. h5 $1 {[%emt 0:04:27][%mdl 512]} Qb6 {[%emt 0:03:10]} 30. Bb3 {[%emt 0:01:26][%csl LRb5,LRd6,LRf5][%cal Rd5d6]} Kh8 {[%emt 0:02:53]} 31. hxg6 {[%emt 0:00:35]} Qf2 {[%emt 0:01:14]} 32. R5d2 {[%emt 0:03:39]} (32. Rxf5 $142 Bg7 33. Qxd6 (33. Rxd6 Rce7 $18) 33... Ra7 34. Re5 Raa8 35. Rh1 Qg1+ 36. Rxg1 Bxe5 37. Qd7) 32... Re2 {[%emt 0:01:05]} 33. Qxf5 {[%emt 0:00:14][%cal Rf5f8] White mates.} Bg7 {[%emt 0:00:45]} 34. Qh3 {[%emt 0:02:05][%csl Gg6][%cal Rh3h7]} Be5 {[%emt 0:02:02] [#]} 35. Qe6 $1 {[%emt 0:00:14][%csl Gb3][%cal Re6g8]} d5 {[%emt 0:00:45]} 36. Bxd5 {[%emt 0:01:09] Weighted Error Value: White=0.31/Black=0.56.  Mistake:       	---       	Black=4      Inaccurate:     	White=3     	Black=1      OK:         	White=7     	Black=10     Best:        	White=2     	Black=2      Strong:       	White=1     	---} 1-0

[Event "Budapest Chess Festival 2024"]
[Site "Budapest"]
[Date "2024.05.23"]
[Round "1.12"]
[White "Hera, Imre Jr."]
[Black "Pyrig, Roman"]
[Result "1-0"]
[ECO "D35"]
[WhiteElo "2542"]
[BlackElo "2262"]
[Annotator "TA"]
[PlyCount "119"]
[EventDate "2024.05.20"]
[EventType "swiss"]
[EventCountry "HUN"]
[SourceTitle "playchess.com"]
[Source "ChessBase"]
[SourceQuality "1"]
[TimeControl "40/5400+30:1800+30"]

{[%evp 16,119,15,0,17,5,10,7,18,5,23,18,18,24,14,16,14,13,16,10,18,9,17,0,3,0,29,31,35,32,26,20,14,23,24,20,37,33,31,0,0,0,0,0,0,0,27,26,26,47,58,28,23,0,0,1,128,118,254,250,273,278,277,260,263,255,262,270,270,233,235,235,236,214,249,248,383,379,379,377,392,392,385,367,485,484,538,537,29968,29969,5489,2250,5309,2397,29980,29981,29980,29981,29980,29981,29982,29983,29981,29982,29982,29979]} 1. d4 {[%emt 0:01:02]} d5 {[%emt 0:00:42]} 2. c4 {[%emt 0:00:15]} e6 {[%emt 0:00:14]} 3. Nc3 {[%emt 0:00:06]} Nf6 {[%emt 0:00:14]} 4. cxd5 {[%emt 0:00:10]} exd5 {[%emt 0:00:05]} 5. Bg5 {[%emt 0:00:05]} Be7 {[%emt 0:00:06]} 6. e3 {[%emt 0:00:03]} Bg4 {[%emt 0:00:13]} 7. Nf3 {[%emt 0:02:01]} Nbd7 {[%emt 0:07:15]} 8. Bd3 {[%emt 0:02:06]} c6 {[%emt 0:02:10]} 9. Qc2 {[%emt 0:01:29]} h6 {[%emt 0:15:16]} 10. Bh4 {[%emt 0:00:40]} O-O {[%emt 0:00:19]} 11. O-O {[%emt 0:01:23]} Rc8 {[%emt 0:16:22] The position is equal.} 12. Qb3 {[%emt 0:19:07]} Ne4 {[%emt 0:28:51]} 13. Bxe7 {[%emt 0:01:27]} Qxe7 {[%emt 0:00:03]} 14. Bxe4 {[%emt 0:00:20]} dxe4 {[%emt 0:00:03]} 15. Nd2 {[%emt 0:00:43][%cal Bf3d2,Bd2f1,Bf1g3][%mdl 32]} Nf6 {[%emt 0:00:02]} 16. Rac1 {[%emt 0:02:55]} Rfd8 {[%emt 0:05:10]} 17. Qa4 {[%emt 0:09:38]} b6 {[%emt 0:07:08]} 18. h3 {[%emt 0:03:36]} Bf5 {[%emt 0:04:49]} 19. Rfd1 {[%emt 0:00:28]} Nd5 {[%emt 0:00:02]} 20. Nf1 {[%emt 0:03:19]} h5 {[%emt 0:01:41]} 21. Ng3 {[%emt 0:00:12]} Bg6 {[%emt 0:00:03]} 22. Nxd5 {[%emt 0:03:26]} cxd5 {[%emt 0:00:06]} 23. Ne2 {[%emt 0:00:05]} f6 {[%emt 0:00:42]} 24. Qa6 {[%emt 0:00:41]} Qd7 {[%emt 0:01:37]} 25. a4 {[%emt 0:03:47]} Rxc1 {[%emt 0:02:15]} 26. Rxc1 {[%emt 0:00:09]} h4 {[%emt 0:00:46]} 27. a5 {[%emt 0:02:12]} Rb8 {[%emt 0:02:24][%cal Bd8b8,Bb8b6,Bb6a6][%mdl 32]} 28. axb6 {[%emt 0:06:22]} Rxb6 {[%emt 0:00:01]} 29. Qa2 {[%emt 0:02:34]} Bf7 {[%emt 0:00:58]} 30. Nc3 {[%emt 0:00:55]} g5 {[%emt 0:02:18]} 31. Na4 $36 {[%emt 0:00:16][%mdl 2048] White is more active.} Ra6 {[%emt 0:02:24]} 32. b3 {[%emt 0:00:20]} f5 {[%emt 0:01:10]} 33. Qc2 {[%emt 0:01:01] Nc5 would now be deadly.} Rg6 {[%emt 0:00:56]} 34. Qc7 {[%emt 0:02:45]} Qxc7 {[%emt 0:00:02]} 35. Rxc7 $11 {[%emt 0:00:04][%mdl 4096] Endgame. KRB-KRN} f4 {[%emt 0:00:00]} (35... Ra6 $11) 36. Rxa7 $16 {[%emt 0:00:56] White is more active.} g4 {[%emt 0:00:01] A mistake that costs the game.} (36... Rf6 $16 {was called for.} 37. Nc5 Rb6) 37. hxg4 $18 {[%emt 0:01:48]} (37. exf4 $2 gxh3 38. g4 Rxg4+ (38... hxg3 39. fxg3 e3 40. Re7 $17) 39. Kh2 Be6 (39... Rxf4 40. Re7 $17) 40. Ra8+ Kf7 41. Ra7+ Kf6 $19) 37... f3 {[%emt 0:00:01]} 38. gxf3 {[%emt 0:06:42]} exf3 {[%emt 0:00:03]} 39. Nc5 {[%emt 0:01:30]} Rxg4+ {[%emt 0:02:13] [#]} 40. Kh1 $1 {[%emt 0:00:00]} Rg2 {[%emt 0:00:00]} 41. Ra2 {[%emt 0:06:40]} Rg6 {[%emt 0:04:11]} 42. b4 {[%emt 0:02:10] aiming for Ra8+.} Rb6 {[%emt 0:00:05]} 43. Rb2 {[%emt 0:00:08]} Be8 {[%emt 0:00:02]} 44. Nd3 {[%emt 0:05:47]} Bb5 {[%emt 0:00:43]} 45. Nf4 {[%emt 0:00:10]} Bc4 {[%emt 0:00:02]} (45... Rc6 {was worth a try.} 46. Kh2 (46. Nxd5 Rc1+ 47. Kh2 Kg7 $18) 46... Kg7) 46. Kh2 {[%emt 0:00:11]} Kf7 {[%emt 0:00:07]} 47. Kh3 {[%emt 0:00:09]} Kf6 {[%emt 0:00:19]} 48. Kxh4 {[%emt 0:05:03]} Kf5 {[%emt 0:00:02]} 49. Kg3 {[%emt 0:00:25]} Ke4 {[%emt 0:00:03]} 50. Kg4 {[%emt 0:00:19] And now Rd2 would win.} Bb5 {[%emt 0:00:49]} 51. Kg5 {[%emt 0:00:22] White threatens Rd2 and mate.} Be8 {[%emt 0:01:33]} 52. Ra2 {[%emt 0:01:01]} Rb7 {[%emt 0:03:26]} 53. Ra8 {[%emt 0:02:01]} (53. Ne6 $142 Kd3 54. Nc5+ Kc4 55. Nxb7 Kxb4 56. Kf6) 53... Bb5 {[%emt 0:00:03]} 54. Rd8 {[%emt 0:00:28]} (54. Ne6 $142 Kd3 55. Nc5+ Kc4 56. Nxb7 Kxb4 57. Nd6) 54... Rg7+ {[%emt 0:01:47]} 55. Kf6 {[%emt 0:00:24] White mates.} Rg4 {[%emt 0:00:03]} 56. Rd6 {[%emt 0:00:39][%cal Rd6e6]} ({Not} 56. Nxd5 Rg2 $16) 56... Rxf4+ {[%emt 0:01:05]} 57. exf4 {[%emt 0:00:05]} Kxd4 {[%emt 0:00:11]} 58. f5 {[%emt 0:00:27]} Bc4 {[%emt 0:00:08]} 59. Kg5 {[%emt 0:00:31]} Kc3 {[%emt 0:00:21] [#]} 60. b5 $1 {Weighted Error Value: White=0.05 (flawless) /Black=0.44.  Mistake:       	---       	Black=3      Inaccurate:     	White=2     	Black=4      OK:         	White=15    	Black=21     Best:        	White=5     	Black=2      Strong:       	White=1     	---} 1-0

[Event "Budapest Chess Festival 2024"]
[Site "Budapest"]
[Date "2024.05.23"]
[Round "1.13"]
[White "Fodor, Balazs"]
[Black "Ivanisevic, Ivan"]
[Result "0-1"]
[ECO "E10"]
[WhiteElo "2260"]
[BlackElo "2537"]
[Annotator "RC"]
[PlyCount "74"]
[EventDate "2024.05.20"]
[EventType "swiss"]
[EventCountry "HUN"]
[SourceTitle "playchess.com"]
[Source "ChessBase"]
[SourceQuality "1"]
[TimeControl "40/5400+30:1800+30"]

1. d4 {[%emt 0:01:25]} Nf6 {[%emt 0:00:00]} 2. c4 {[%emt 0:00:44]} e6 {[%emt 0:00:48]} 3. Nf3 {[%emt 0:00:14]} d5 {[%emt 0:00:19]} 4. g3 {[%emt 0:00:10]} Bd6 {[%emt 0:00:25]} 5. Bg2 {[%emt 0:01:05]} O-O {[%emt 0:00:09]} 6. O-O {[%emt 0:00:08]} Nc6 {[%emt 0:00:27]} 7. a3 {[%emt 0:02:36]} dxc4 {[%emt 0:05:08]} 8. Nbd2 {[%emt 0:00:14]} b5 {[%emt 0:15:49]} 9. Qc2 {[%emt 0:12:17]} Bb7 {[%emt 0:03:04]} 10. b3 {[%emt 0:02:23]} cxb3 {[%emt 0:03:44]} 11. Nxb3 {[%emt 0:00:33]} Ne7 {[%emt 0:03:44]} 12. Bd2 {[%emt 0:16:47]} Be4 {[%emt 0:03:29]} 13. Qb2 {[%emt 0:00:12]} h6 {[%emt 0:05:09]} 14. Rfc1 {[%emt 0:01:52]} a6 {[%emt 0:04:41]} 15. Bb4 {[%emt 0:12:06]} Bd5 {[%emt 0:02:18]} 16. Nbd2 {[%emt 0:00:43]} Nc6 {[%emt 0:03:11]} 17. Bc5 {[%emt 0:13:15]} Ne4 {[%emt 0:03:38]} 18. Nxe4 {[%emt 0:09:42]} Bxe4 {[%emt 0:00:08]} 19. e3 {[%emt 0:01:28]} Na5 {[%emt 0:05:39]} 20. a4 {[%emt 0:03:20]} Nc4 {[%emt 0:00:44]} 21. Qb4 {[%emt 0:01:35]} Bxc5 {[%emt 0:09:22]} 22. Qxc5 {[%emt 0:00:10]} Qd5 {[%emt 0:01:54]} 23. Qxd5 {[%emt 0:00:23]} exd5 {[%emt 0:00:52]} 24. Ne1 {[%emt 0:02:44]} Bxg2 {[%emt 0:01:27]} 25. Kxg2 {[%emt 0:00:09]} b4 {[%emt 0:05:34]} 26. Nd3 {[%emt 0:00:12]} Rfb8 {[%emt 0:01:51]} 27. Rab1 {[%emt 0:00:22]} b3 {[%emt 0:02:14]} 28. Ne5 {[%emt 0:03:59]} b2 {[%emt 0:12:46]} 29. Rc2 {[%emt 0:00:09]} Na3 {[%emt 0:00:05]} 30. Rbxb2 {[%emt 0:00:08]} Nxc2 {[%emt 0:00:06]} 31. Rxc2 {[%emt 0:00:09]} Rb4 {[%emt 0:00:40]} 32. Rxc7 {[%emt 0:03:41]} Rxa4 {[%emt 0:00:05]} 33. Rxf7 {[%emt 0:01:04]} Ra1 {[%emt 0:01:27]} 34. Rc7 {[%emt 0:01:32]} a5 {[%emt 0:00:05]} 35. Rc2 {[%emt 0:02:02]} a4 {[%emt 0:00:39]} 36. Nd3 {[%emt 0:00:25]} a3 {[%emt 0:00:07]} 37. Kh3 {[%emt 0:01:42]} Rb1 {[%emt 0:01:12]} 0-1